{"text_format":"3","workbook":"xlsx","n_sheets":6,"sheets":["Início","Painel","Despesas e renda","Relatório de Orçamento","Listas de Dados","Tabela Dinâmica da Categoria"],"not_rendered":{"charts":3,"defined_names":23,"pivot_tables":2},"read":"whole","date_system":"1900"}

{"sheet":"Início","index":0,"n_rows":8,"n_cols":2,"rows_kept":8}
[null,"Sobre o modelo"]
[null,"Use este modelo para criar um orçamento inicial semi-mensal."]
[null,"A planilha do Painel contém gráficos para Totais Mensais e Anuais e uma tabela para receita e despesas."]
[null,"Insira categorias na planilha Listas de Dados e valores na planilha Receita e Gastos."]
[null,"Atualize a Tabela Dinâmica na planilha Relatório de Orçamento."]
[null,"Observação:"]
[null,"Foram fornecidas instruções adicionais na coluna A em todas as planilhas. Este texto está oculto de propósito. Para removê-lo, selecione a coluna A e selecione Excluir. "]
[null,"Para saber mais sobre tabela, pressione Shift e F10 dentro de uma tabela, selecione a opção TABELA e, em seguida, selecione TEXTO ALTERNATIVO. Para tabelas dinâmicas, pressione Shift e F10 dentro de uma tabela, selecione as opções de tabela dinâmica e, em seguida, selecione a guia TEXTO ALTERNATIVO."]

{"sheet":"Painel","index":1,"n_rows":12,"n_cols":15,"rows_kept":12,"merged":[[0,1,0,13],[1,2,1,7]]}
["Crie um painel para Totais Mensais e Anuais, além de receita e despesas nessa planilha. Instruções úteis sobre como usar esta planilha estão nas células desta coluna. O título da pasta de trabalho está na célula à direita e o título da planilha na célula O1.","Orçamento Doméstico Quinzenal",{"$nulls":12},"PAINEL"]
["Selecione o controle deslizante na célula C2 para alterar o mês da célula à direita e, para alterar o ano na célula I2, selecione o controle deslizante na célula J2.",{"$f":"CHOOSE(NúmeroDoMês,\"JANEIRO\",\"FEVEREIRO\",\"MARÇO\",\"ABRIL\",\"MAIO\",\"JUNHO\",\"JULHO\",\"AGOSTO\",\"SETEMBRO\",\"OUTUBRO\",\"NOVEMBRO\",\"DEZEMBRO\")","v":"DEZEMBRO"},12,{"$nulls":5},{"$f":"YEAR(TODAY())","v":2022}]
["O rótulo Totais de Meses está na célula à direita e o rótulo Totais Anuais na célula I3.","TOTAIS DOS MESES",{"$nulls":6},"TOTAIS ANUAIS"]
["Gráfico de barras que comparam os totais de Receita Mensal aos totais de Despesas Mensais está na célula C4 e o gráfico de barras que compara os totais de Receita Anual com os totais de Despesa Anual está na célula J4. A próxima instrução está na célula A8.","RECEITA",null,{"$f":"TotalDeDespesasMensais","v":{"v":0,"d":"R$ 0"}},{"$nulls":4},"RECEITA",null,null,{"$f":"TotaisDeDespesasAnuais","v":{"v":10742,"d":"R$ 10,742"}}]
[null,"DESPESAS",null,{"$f":"TotalDaRendaMensal","v":{"v":0,"d":"R$ 0"}},{"$nulls":4},"DESPESAS",null,null,{"$f":"TotaisDaRendaAnual","v":{"v":13200,"d":"R$ 13,200"}}]
[]
[]
["A tabela do painel que começa na célula à direita é atualizada automaticamente.","Categoria","JANEIRO","FEVEREIRO","MARÇO","ABRIL","MAIO","JUNHO","JULHO","AGOSTO","SETEMBRO","OUTUBRO","NOVEMBRO","DEZEMBRO","Minigráfico"]
[null,"Receita de 1 a 15",{"$f":"SUMIFS(Renda[VALOR],Renda[DATA],\"<=\"&DataMédia,Renda[DATA],\">=\"&DataInicial)","v":{"v":0,"d":"R$ 0.00"}},{"$f":"SUMIFS(Renda[VALOR],Renda[DATA],\"<=\"&DataMédia,Renda[DATA],\">=\"&DataInicial)","v":{"v":0,"d":"R$ 0.00"}},{"$f":"SUMIFS(Renda[VALOR],Renda[DATA],\"<=\"&DataMédia,Renda[DATA],\">=\"&DataInicial)","v":{"v":1300,"d":"R$ 1,300.00"}},{"$f":"SUMIFS(Renda[VALOR],Renda[DATA],\"<=\"&DataMédia,Renda[DATA],\">=\"&DataInicial)","v":{"v":2600,"d":"R$ 2,600.00"}},{"$f":"SUMIFS(Renda[VALOR],Renda[DATA],\"<=\"&DataMédia,Renda[DATA],\">=\"&DataInicial)","v":{"v":2600,"d":"R$ 2,600.00"}},{"$f":"SUMIFS(Renda[VALOR],Renda[DATA],\"<=\"&DataMédia,Renda[DATA],\">=\"&DataInicial)","v":{"v":0,"d":"R$ 0.00"}},{"$f":"SUMIFS(Renda[VALOR],Renda[DATA],\"<=\"&DataMédia,Renda[DATA],\">=\"&DataInicial)","v":{"v":0,"d":"R$ 0.00"}},{"$f":"SUMIFS(Renda[VALOR],Renda[DATA],\"<=\"&DataMédia,Renda[DATA],\">=\"&DataInicial)","v":{"v":0,"d":"R$ 0.00"}},{"$f":"SUMIFS(Renda[VALOR],Renda[DATA],\"<=\"&DataMédia,Renda[DATA],\">=\"&DataInicial)","v":{"v":0,"d":"R$ 0.00"}},{"$f":"SUMIFS(Renda[VALOR],Renda[DATA],\"<=\"&DataMédia,Renda[DATA],\">=\"&DataInicial)","v":{"v":0,"d":"R$ 0.00"}},{"$f":"SUMIFS(Renda[VALOR],Renda[DATA],\"<=\"&DataMédia,Renda[DATA],\">=\"&DataInicial)","v":{"v":0,"d":"R$ 0.00"}},{"$f":"SUMIFS(Renda[VALOR],Renda[DATA],\"<=\"&DataMédia,Renda[DATA],\">=\"&DataInicial)","v":{"v":0,"d":"R$ 0.00"}}]
[null,"Receita 16-EOM",{"$f":"SUMIFS(Renda[VALOR],Renda[DATA],\"<=\"&DataFinal,Renda[DATA],\">=\"&DataMédia+1)","v":{"v":0,"d":"R$ 0.00"}},{"$f":"SUMIFS(Renda[VALOR],Renda[DATA],\"<=\"&DataFinal,Renda[DATA],\">=\"&DataMédia+1)","v":{"v":0,"d":"R$ 0.00"}},{"$f":"SUMIFS(Renda[VALOR],Renda[DATA],\"<=\"&DataFinal,Renda[DATA],\">=\"&DataMédia+1)","v":{"v":3100,"d":"R$ 3,100.00"}},{"$f":"SUMIFS(Renda[VALOR],Renda[DATA],\"<=\"&DataFinal,Renda[DATA],\">=\"&DataMédia+1)","v":{"v":3100,"d":"R$ 3,100.00"}},{"$f":"SUMIFS(Renda[VALOR],Renda[DATA],\"<=\"&DataFinal,Renda[DATA],\">=\"&DataMédia+1)","v":{"v":500,"d":"R$ 500.00"}},{"$f":"SUMIFS(Renda[VALOR],Renda[DATA],\"<=\"&DataFinal,Renda[DATA],\">=\"&DataMédia+1)","v":{"v":0,"d":"R$ 0.00"}},{"$f":"SUMIFS(Renda[VALOR],Renda[DATA],\"<=\"&DataFinal,Renda[DATA],\">=\"&DataMédia+1)","v":{"v":0,"d":"R$ 0.00"}},{"$f":"SUMIFS(Renda[VALOR],Renda[DATA],\"<=\"&DataFinal,Renda[DATA],\">=\"&DataMédia+1)","v":{"v":0,"d":"R$ 0.00"}},{"$f":"SUMIFS(Renda[VALOR],Renda[DATA],\"<=\"&DataFinal,Renda[DATA],\">=\"&DataMédia+1)","v":{"v":0,"d":"R$ 0.00"}},{"$f":"SUMIFS(Renda[VALOR],Renda[DATA],\"<=\"&DataFinal,Renda[DATA],\">=\"&DataMédia+1)","v":{"v":0,"d":"R$ 0.00"}},{"$f":"SUMIFS(Renda[VALOR],Renda[DATA],\"<=\"&DataFinal,Renda[DATA],\">=\"&DataMédia+1)","v":{"v":0,"d":"R$ 0.00"}},{"$f":"SUMIFS(Renda[VALOR],Renda[DATA],\"<=\"&DataFinal,Renda[DATA],\">=\"&DataMédia+1)","v":{"v":0,"d":"R$ 0.00"}}]
[null,"Despesas de 1 a 15",{"$f":"SUMIFS(Despesas[VALOR],Despesas[DATA],\"<=\"&DataMédia+1,Despesas[DATA],\">=\"&DataInicial)","v":{"v":0,"d":"R$ 0.00"}},{"$f":"SUMIFS(Despesas[VALOR],Despesas[DATA],\"<=\"&DataMédia+1,Despesas[DATA],\">=\"&DataInicial)","v":{"v":0,"d":"R$ 0.00"}},{"$f":"SUMIFS(Despesas[VALOR],Despesas[DATA],\"<=\"&DataMédia+1,Despesas[DATA],\">=\"&DataInicial)","v":{"v":1150,"d":"R$ 1,150.00"}},{"$f":"SUMIFS(Despesas[VALOR],Despesas[DATA],\"<=\"&DataMédia+1,Despesas[DATA],\">=\"&DataInicial)","v":{"v":5225,"d":"R$ 5,225.00"}},{"$f":"SUMIFS(Despesas[VALOR],Despesas[DATA],\"<=\"&DataMédia+1,Despesas[DATA],\">=\"&DataInicial)","v":{"v":3242,"d":"R$ 3,242.00"}},{"$f":"SUMIFS(Despesas[VALOR],Despesas[DATA],\"<=\"&DataMédia+1,Despesas[DATA],\">=\"&DataInicial)","v":{"v":0,"d":"R$ 0.00"}},{"$f":"SUMIFS(Despesas[VALOR],Despesas[DATA],\"<=\"&DataMédia+1,Despesas[DATA],\">=\"&DataInicial)","v":{"v":0,"d":"R$ 0.00"}},{"$f":"SUMIFS(Despesas[VALOR],Despesas[DATA],\"<=\"&DataMédia+1,Despesas[DATA],\">=\"&DataInicial)","v":{"v":0,"d":"R$ 0.00"}},{"$f":"SUMIFS(Despesas[VALOR],Despesas[DATA],\"<=\"&DataMédia+1,Despesas[DATA],\">=\"&DataInicial)","v":{"v":0,"d":"R$ 0.00"}},{"$f":"SUMIFS(Despesas[VALOR],Despesas[DATA],\"<=\"&DataMédia+1,Despesas[DATA],\">=\"&DataInicial)","v":{"v":0,"d":"R$ 0.00"}},{"$f":"SUMIFS(Despesas[VALOR],Despesas[DATA],\"<=\"&DataMédia+1,Despesas[DATA],\">=\"&DataInicial)","v":{"v":0,"d":"R$ 0.00"}},{"$f":"SUMIFS(Despesas[VALOR],Despesas[DATA],\"<=\"&DataMédia+1,Despesas[DATA],\">=\"&DataInicial)","v":{"v":0,"d":"R$ 0.00"}}]
[null,"Despesas de 16-EOM",{"$f":"SUMIFS(Despesas[VALOR],Despesas[DATA],\"<=\"&DataFinal,Despesas[DATA],\">=\"&DataMédia+1)","v":{"v":0,"d":"R$ 0.00"}},{"$f":"SUMIFS(Despesas[VALOR],Despesas[DATA],\"<=\"&DataFinal,Despesas[DATA],\">=\"&DataMédia+1)","v":{"v":75,"d":"R$ 75.00"}},{"$f":"SUMIFS(Despesas[VALOR],Despesas[DATA],\"<=\"&DataFinal,Despesas[DATA],\">=\"&DataMédia+1)","v":{"v":200,"d":"R$ 200.00"}},{"$f":"SUMIFS(Despesas[VALOR],Despesas[DATA],\"<=\"&DataFinal,Despesas[DATA],\">=\"&DataMédia+1)","v":{"v":900,"d":"R$ 900.00"}},{"$f":"SUMIFS(Despesas[VALOR],Despesas[DATA],\"<=\"&DataFinal,Despesas[DATA],\">=\"&DataMédia+1)","v":{"v":500,"d":"R$ 500.00"}},{"$f":"SUMIFS(Despesas[VALOR],Despesas[DATA],\"<=\"&DataFinal,Despesas[DATA],\">=\"&DataMédia+1)","v":{"v":0,"d":"R$ 0.00"}},{"$f":"SUMIFS(Despesas[VALOR],Despesas[DATA],\"<=\"&DataFinal,Despesas[DATA],\">=\"&DataMédia+1)","v":{"v":0,"d":"R$ 0.00"}},{"$f":"SUMIFS(Despesas[VALOR],Despesas[DATA],\"<=\"&DataFinal,Despesas[DATA],\">=\"&DataMédia+1)","v":{"v":0,"d":"R$ 0.00"}},{"$f":"SUMIFS(Despesas[VALOR],Despesas[DATA],\"<=\"&DataFinal,Despesas[DATA],\">=\"&DataMédia+1)","v":{"v":0,"d":"R$ 0.00"}},{"$f":"SUMIFS(Despesas[VALOR],Despesas[DATA],\"<=\"&DataFinal,Despesas[DATA],\">=\"&DataMédia+1)","v":{"v":0,"d":"R$ 0.00"}},{"$f":"SUMIFS(Despesas[VALOR],Despesas[DATA],\"<=\"&DataFinal,Despesas[DATA],\">=\"&DataMédia+1)","v":{"v":0,"d":"R$ 0.00"}},{"$f":"SUMIFS(Despesas[VALOR],Despesas[DATA],\"<=\"&DataFinal,Despesas[DATA],\">=\"&DataMédia+1)","v":{"v":0,"d":"R$ 0.00"}}]

{"sheet":"Despesas e renda","index":2,"n_rows":36,"n_cols":9,"rows_kept":36,"merged":[[0,1,0,6],[0,7,0,8]]}
["Crie uma lista de Entradas e Gastos nesta planilha. Instruções úteis sobre como usar esta planilha estão nas células desta coluna. O título da pasta de trabalho está na célula à direita e o título da planilha na célula H1.",{"$f":"Título_do_Orçamento_Doméstico_Quinzenal","v":"Orçamento Doméstico Quinzenal"},{"$nulls":5},"RECEITA E GASTOS"]
["O rótulo Receita está na célula à direita e o rótulo Despesas na célula F2.","RECEITA",{"$nulls":3},"DESPESAS"]
["Insira os detalhes na tabela Receita começando na célula à direita e na tabela Gastos iniciando na célula F3.","DATA","DESCRIÇÃO","VALOR",null,"DATA","CATEGORIA","DESCRIÇÃO","VALOR"]
[null,{"$f":"TODAY()","v":"2022-05-16"},"Bônus",{"v":500,"d":"R$ 500.00"},null,{"$f":"TODAY()","v":"2022-05-16"},"Médico","Seguro",{"v":500,"d":"R$ 500.00"}]
[null,{"$f":"TODAY()-14","v":"2022-05-02"},"Pagamento do David",{"v":1300,"d":"R$ 1,300.00"},null,{"$f":"TODAY()-7","v":"2022-05-09"},"Domésticas","Hipoteca",{"v":1000,"d":"R$ 1,000.00"}]
[null,{"$f":"TODAY()-14","v":"2022-05-02"},"Pagamento da Pat",{"v":1300,"d":"R$ 1,300.00"},null,"2022-05-09","Domésticas","Conta de luz",{"v":100,"d":"R$ 100.00"}]
[null,{"$f":"TODAY()-28","v":"2022-04-18"},"Pagamento do David",{"v":1500,"d":"R$ 1,500.00"},null,"2022-05-09","Domésticas","Água/esgoto",{"v":50,"d":"R$ 50.00"}]
[null,{"$f":"TODAY()-28","v":"2022-04-18"},"Pagamento da Pat",{"v":1600,"d":"R$ 1,600.00"},null,"2022-05-09","Domésticas","Lixo",{"v":25,"d":"R$ 25.00"}]
[null,{"$f":"TODAY()-42","v":"2022-04-04"},"Pagamento do David",{"v":1300,"d":"R$ 1,300.00"},null,"2022-05-09","Domésticas","Celular",{"v":100,"d":"R$ 100.00"}]
[null,{"$f":"TODAY()-42","v":"2022-04-04"},"Pagamento da Pat",{"v":1300,"d":"R$ 1,300.00"},null,"2022-05-09","Domésticas","Celular",{"v":30,"d":"R$ 30.00"}]
[null,{"$f":"TODAY()-56","v":"2022-03-21"},"Pagamento do David",{"v":1500,"d":"R$ 1,500.00"},null,"2022-05-09","Domésticas","Hipoteca",{"v":50,"d":"R$ 50.00"}]
[null,{"$f":"TODAY()-56","v":"2022-03-21"},"Pagamento da Pat",{"v":1600,"d":"R$ 1,600.00"},null,"2022-05-09","Domésticas","Celular",{"v":50,"d":"R$ 50.00"}]
[null,{"$f":"TODAY()-70","v":"2022-03-07"},"Pagamento do David",{"v":1300,"d":"R$ 1,300.00"},null,{"$f":"TODAY()-7","v":"2022-05-09"},"Domésticas","Celular",{"v":25,"d":"R$ 25.00"}]
[{"$nulls":5},{"$f":"TODAY()-8","v":"2022-05-08"},"Domésticas","Conta de luz",{"v":100,"d":"R$ 100.00"}]
[{"$nulls":5},{"$f":"TODAY()-9","v":"2022-05-07"},"Entretenimento","Filmes",{"v":37,"d":"R$ 37.00"}]
[{"$nulls":5},{"$f":"TODAY()-10","v":"2022-05-06"},"Comida","Supermercado",{"v":350,"d":"R$ 350.00"}]
[{"$nulls":5},{"$f":"TODAY()-11","v":"2022-05-05"},"Comida","Jantar fora",{"v":75,"d":"R$ 75.00"}]
[{"$nulls":5},{"$f":"TODAY()-12","v":"2022-05-04"},"Filhos","Dinheiro para almoço",{"v":150,"d":"R$ 150.00"}]
[{"$nulls":5},{"$f":"TODAY()-13","v":"2022-05-03"},"Contas de Investimento","Economias",{"v":250,"d":"R$ 250.00"}]
[{"$nulls":5},{"$f":"TODAY()-14","v":"2022-05-02"},"Contas de Investimento","Conta de investimentos",{"v":250,"d":"R$ 250.00"}]
[{"$nulls":5},{"$f":"TODAY()-15","v":"2022-05-01"},"Pessoal","Clube de Fitness/Saúde",{"v":100,"d":"R$ 100.00"}]
[{"$nulls":5},{"$f":"TODAY()-16","v":"2022-04-30"},"Animais de estimação","Comida",{"v":50,"d":"R$ 50.00"}]
[{"$nulls":5},{"$f":"TODAY()-20","v":"2022-04-26"},"Animais de estimação","Dia da Beleza",{"v":50,"d":"R$ 50.00"}]
[{"$nulls":5},{"$f":"TODAY()-20","v":"2022-04-26"},"Animais de estimação","Outros",{"v":50,"d":"R$ 50.00"}]
[{"$nulls":5},{"$f":"TODAY()-25","v":"2022-04-21"},"Transporte","Carro 1 Pagamento ",{"v":300,"d":"R$ 300.00"}]
[{"$nulls":5},{"$f":"TODAY()-25","v":"2022-04-21"},"Transporte","Carro 2 Pagamento ",{"v":350,"d":"R$ 350.00"}]
[{"$nulls":5},{"$f":"TODAY()-25","v":"2022-04-21"},"Transporte","Seguro do Carro",{"v":50,"d":"R$ 50.00"}]
[{"$nulls":5},{"$f":"TODAY()-30","v":"2022-04-16"},"Transporte","Combustível",{"v":50,"d":"R$ 50.00"}]
[{"$nulls":5},{"$f":"TODAY()-31","v":"2022-04-15"},"Transporte","Combustível",{"v":25,"d":"R$ 25.00"}]
[{"$nulls":5},{"$f":"TODAY()-42","v":"2022-04-04"},"Transporte","Carro 2 Pagamento ",{"v":150,"d":"R$ 150.00"}]
[{"$nulls":5},{"$f":"TODAY()-45","v":"2022-04-01"},"Domésticas","Hipoteca",{"v":5000,"d":"R$ 5,000.00"}]
[{"$nulls":5},{"$f":"TODAY()-50","v":"2022-03-27"},"Domésticas","Conta de luz",{"v":200,"d":"R$ 200.00"}]
[{"$nulls":5},{"$f":"TODAY()-65","v":"2022-03-12"},"Domésticas","Celular",{"v":100,"d":"R$ 100.00"}]
[{"$nulls":5},{"$f":"TODAY()-70","v":"2022-03-07"},"Domésticas","Lixo",{"v":50,"d":"R$ 50.00"}]
[{"$nulls":5},{"$f":"TODAY()-75","v":"2022-03-02"},"Domésticas","Hipoteca",{"v":1000,"d":"R$ 1,000.00"}]
[{"$nulls":5},{"$f":"TODAY()-78","v":"2022-02-27"},"Entretenimento","Filmes",{"v":75,"d":"R$ 75.00"}]

{"sheet":"Relatório de Orçamento","index":3,"n_rows":26,"n_cols":6,"rows_kept":26,"merged":[[0,1,0,4],[1,1,1,3],[4,3,4,5]]}
["Crie um Relatório de Orçamento nesta planilha. Instruções úteis sobre como usar esta planilha estão nas células desta coluna. O título da pasta de trabalho está na célula à direita e o título da planilha na célula F1.",{"$f":"Título_do_Orçamento_Doméstico_Quinzenal","v":"Orçamento Doméstico Quinzenal"},{"$nulls":3},"RELATÓRIO DE ORÇAMENTO"]
["Selecione Anos, Trimestres, Meses ou Dias e use o controle deslizante na célula à direita para obter a Tabela Dinâmica de Despesas para o período selecionado. AO cortador de categoria para filtrar os dados da Tabela dinâmica está na célula E2 e o cortador de descrição na célula F2.","A linha do tempo para filtrar está nessa célula.",null,null,"O cortador para filtrar dados da Tabela Dinâmica com base em Categoria está nessa célula.","A segmentação para filtrar dados da Tabela Dinâmica com base na Descrição está nessa célula."]
["A dica está na célula à direita.","Pressione Shift+F10 na Tabela Dinâmica de Gastos e selecione Atualizar para atualizar os dados nesta planilha ou selecione Atualizar na guia Análise."]
["O rótulo de gastos está na célula à direita.","DESPESAS"]
["Tabela Dinâmica mostrando que os gastos começam na célula à direita. O rótulo Totais de Categoria está na célula D4.","Rótulos de Linha","Soma de VALOR","TOTAL DE CATEGORIAS"]
["O gráfico de pizza comparando cada total de categorias está na célula D6.","Carro 1 Pagamento ",{"v":300,"d":"R$ 300.00"}]
[null,"Carro 2 Pagamento ",{"v":500,"d":"R$ 500.00"}]
[null,"Celular",{"v":305,"d":"R$ 305.00"}]
[null,"Clube de Fitness/Saúde",{"v":100,"d":"R$ 100.00"}]
[null,"Combustível",{"v":75,"d":"R$ 75.00"}]
[null,"Comida",{"v":50,"d":"R$ 50.00"}]
[null,"Conta de investimentos",{"v":250,"d":"R$ 250.00"}]
[null,"Conta de luz",{"v":400,"d":"R$ 400.00"}]
[null,"Dia da Beleza",{"v":50,"d":"R$ 50.00"}]
[null,"Dinheiro para almoço",{"v":150,"d":"R$ 150.00"}]
[null,"Economias",{"v":250,"d":"R$ 250.00"}]
[null,"Filmes",{"v":112,"d":"R$ 112.00"}]
[null,"Hipoteca",{"v":7050,"d":"R$ 7,050.00"}]
[null,"Jantar fora",{"v":75,"d":"R$ 75.00"}]
[null,"Lixo",{"v":75,"d":"R$ 75.00"}]
[null,"Outros",{"v":50,"d":"R$ 50.00"}]
[null,"Seguro",{"v":500,"d":"R$ 500.00"}]
[null,"Seguro do Carro",{"v":50,"d":"R$ 50.00"}]
[null,"Supermercado",{"v":350,"d":"R$ 350.00"}]
[null,"Água/esgoto",{"v":50,"d":"R$ 50.00"}]
[null,"Total Geral",{"v":10742,"d":"R$ 10,742.00"}]

{"sheet":"Listas de Dados","index":4,"n_rows":8,"n_cols":13,"rows_kept":8,"merged":[[0,1,0,11]]}
["Insira os dados de Categoria nesta planilha para preencher as listas listadas na planilha Gastos e Receita. Modifique nomes de categoria ou descrições abaixo de cada categoria para atualizar as listas. Instruções úteis sobre como usar esta planilha estão nas células desta coluna. O título da pasta de trabalho está na célula à direita e o título da planilha na célula M1.",{"$f":"Título_do_Orçamento_Doméstico_Quinzenal","v":"Orçamento Doméstico Quinzenal"},{"$nulls":10},"LISTAS DE DADOS"]
["A dica está na célula à direita.","CONFIGURAÇÃO         Os dados da categoria abaixo preenchem as listas listadas na tabela Gastos na planilha Despesas e Receita. Modifique os nomes das categorias ou as descrições abaixo de cada categoria para atualizar as listas."]
["Insira ou modifique nomes de categoria ou descrições abaixo de cada categoria na tabela iniciando na célula à direita.","Domésticas","Entretenimento","Comida","Presentes/doação","Filhos","Contas de Investimento","Médico","Outros","Pessoal","Animais de estimação","Impostos/Jurídico","Transporte"]
[null,"Hipoteca","Filmes","Supermercado","Instituição beneficente 1","Roupas","IRA","Médico/clínica","Outros","Vestuário","Comida","Federal","Carro 1 Pagamento "]
[null,"Conta de luz","Vídeo/filmes","Jantar fora","Instituição beneficente 2","Brinquedos/Jogos","Economias","Seguro","Impostos de organização","Cabelo/unhas","Suprimentos","Estadual","Carro 2 Pagamento "]
[null,"Água/Esgoto","Música",null,"Instituição beneficente 3","Dinheiro para almoço","Conta Corrente",null,null,"Lavagem a seco","Médico","Local","Seguro do Carro"]
[null,"Lixo","Concertos/Teatro",null,"Presente","Taxas/vencimentos","Aposentadoria",null,null,"Clube de Fitness/Saúde","Dia da Beleza","Outros","Licenciamento/Registro"]
[null,"Celular","Eventos esportivos",null,null,"Material escolar","Conta de investimentos",null,null,"Compras","Outros","Advogado","Combustível"]

{"sheet":"Tabela Dinâmica da Categoria","index":5,"n_rows":13,"n_cols":13,"rows_kept":13,"hidden":true}
[null,"Orçamento Doméstico Quinzenal",{"$nulls":10},"CATEGORIA DINÂMICA"]
[null,"Esta Tabela Dinâmica é a fonte de dados para o Gráfico Dinâmica de Totais de Categoria no Relatório de Orçamento. "]
[null,"Rótulos de Linha","Soma de VALOR"]
[null,"Filhos",{"v":150,"d":"R$ 150"}]
[null,"Entretenimento",{"v":112,"d":"R$ 112"}]
[null,"Comida",{"v":425,"d":"R$ 425"}]
[null,"Domésticas",{"v":7880,"d":"R$ 7,880"}]
[null,"Contas de Investimento",{"v":500,"d":"R$ 500"}]
[null,"Médico",{"v":500,"d":"R$ 500"}]
[null,"Pessoal",{"v":100,"d":"R$ 100"}]
[null,"Animais de estimação",{"v":150,"d":"R$ 150"}]
[null,"Transporte",{"v":925,"d":"R$ 925"}]
[null,"Total Geral",{"v":10742,"d":"R$ 10,742"}]